bitfinex/quotes_BTCUSD_20240817
["timestamp","ask_amount","ask_price","bid_price","bid_amount"]
[1723853937421,1.97129565,58970.0,58969.0,3.888e-05]
[1723853937619,2.31045065,58970.0,58969.0,3.888e-05]
[1723853937843,1.97129565,58970.0,58969.0,3.888e-05]
[1723853938047,1.95829565,58970.0,58969.0,3.888e-05]
[1723853938253,1.97229565,58970.0,58969.0,3.888e-05]
[1723853938650,1.95829565,58970.0,58969.0,3.888e-05]
[1723853938850,1.97229565,58970.0,58969.0,3.888e-05]
[1723853939396,1.95829565,58970.0,58969.0,3.888e-05]
[1723853939603,1.72220234,58970.0,58969.0,3.888e-05]
[1723853939817,1.70820234,58970.0,58969.0,3.888e-05]
[1723853940017,1.78273692,58970.0,58969.0,3.888e-05]
[1723853941115,1.79673692,58970.0,58969.0,3.888e-05]
[1723853941330,1.95429146,58970.0,58969.0,3.888e-05]
[1723853941661,1.96829146,58970.0,58969.0,3.888e-05]
[1723853941860,1.96646192,58970.0,58969.0,3.888e-05]
[1723853942106,1.96829146,58970.0,58969.0,3.888e-05]
[1723853942335,1.89368284,58970.0,58969.0,3.888e-05]
[1723853942499,1.95904725,58970.0,58969.0,3.888e-05]
[1723853942699,1.88503762,58970.0,58969.0,3.888e-05]
[1723853944128,0.74324869,58959.0,58958.0,0.0009064]
[1723853944340,0.93195635,58959.0,58958.0,0.0009064]
[1723853944545,1.27117435,58959.0,58958.0,0.0009064]
[1723853944983,1.27217435,58959.0,58958.0,0.0009064]
[1723853945225,1.61739235,58959.0,58958.0,0.0009064]
[1723853945403,2.04339772,58959.0,58958.0,0.0009064]
[1723853945600,1.03048169,58958.0,58957.0,0.00042401]
[1723853945803,1.87448488,58958.0,58957.0,0.00042401]
[1723853946429,1.91394905,58958.0,58957.0,0.00042401]
[1723853946619,1.76417344,58958.0,58957.0,0.00042401]
[1723853946798,1.90975102,58958.0,58957.0,0.00042401]
[1723853947995,1.25478169,58951.0,58950.0,0.00558341]
[1723853948175,1.26813667,58951.0,58950.0,0.00558341]
[1723853948294,1.27113667,58951.0,58950.0,0.00558341]
[1723853948919,1.61040067,58951.0,58950.0,0.00558341]
[1723853949517,1.62240067,58951.0,58950.0,0.00558341]
[1723853949778,1.79395521,58951.0,58950.0,0.00558341]
[1723853950567,1.62240067,58951.0,58950.0,0.00558341]
[1723853951470,1.61040067,58951.0,58950.0,0.00558341]
[1723853951705,1.60740067,58951.0,58950.0,0.00558341]
[1723853951996,1.62440067,58951.0,58950.0,0.00558341]
[1723853952239,1.28213667,58951.0,58950.0,0.00558341]
[1723853952542,0.61760867,58951.0,58950.0,0.00558341]
[1723853952770,0.44840867,58951.0,58950.0,0.00558341]
[1723853952998,0.78767267,58951.0,58950.0,0.00558341]
[1723853953220,1.09893667,58951.0,58950.0,0.00558341]
[1723853953390,1.11193667,58951.0,58950.0,0.00558341]
[1723853953839,0.77267267,58951.0,58950.0,0.00558341]
[1723853954752,0.43340867,58951.0,58950.0,0.00558341]
[1723853954937,0.77267267,58951.0,58950.0,0.00558341]
[1723853957200,0.43340867,58951.0,58950.0,0.00558341]
[1723853957379,0.77267267,58951.0,58950.0,0.00558341]
[1723853958615,1.11193667,58951.0,58950.0,0.00558341]
[1723853958974,1.33404924,58951.0,58950.0,0.00558341]
[1723853959126,1.40924924,58951.0,58950.0,0.00558341]
[1723853960366,1.75151324,58951.0,58950.0,0.00558341]
[1723853961462,1.74851324,58951.0,58950.0,0.00558341]
[1723853961598,1.74951324,58951.0,58950.0,0.00558341]
[1723853962180,1.80176227,58951.0,58950.0,0.00558341]
[1723853964121,1.82388679,58951.0,58950.0,0.00558341]
[1723853964325,1.82396797,58951.0,58950.0,0.00558341]
[1723853964551,1.82496797,58951.0,58950.0,0.00558341]
[1723853964965,1.82696797,58951.0,58950.0,0.00558341]
[1723853965194,1.82513843,58951.0,58950.0,0.00558341]
[1723853965407,1.6958554,58951.0,58950.0,0.00558341]
[1723853965878,1.86501708,58951.0,58950.0,0.00558341]
[1723853966136,1.86701708,58951.0,58950.0,0.00558341]
[1723853966268,1.86684662,58951.0,58950.0,0.00558341]
[1723853966726,1.87084662,58951.0,58950.0,0.00558341]
[1723853967040,2.06755273,58951.0,58950.0,0.00185169]
[1723853967255,1.72828873,58951.0,58950.0,0.00185169]
[1723853967452,2.06755273,58951.0,58950.0,0.00185169]
[1723853969447,2.06575483,58951.0,58950.0,0.00185169]
[1723853970565,1.72731483,58951.0,58950.0,0.00185169]
[1723853970769,1.55193075,58951.0,58950.0,0.00185169]
[1723853970973,1.55376029,58951.0,58950.0,0.00185169]
[1723853971178,1.42795859,58951.0,58950.0,0.00185169]
[1723853971554,1.42995859,58951.0,58950.0,0.00185169]
[1723853972348,1.56534778,58951.0,58950.0,0.00185169]
[1723853972603,0.84710069,58951.0,58950.0,0.00185169]
[1723853972807,0.50930478,58951.0,58950.0,0.00185169]
[1723853973015,0.43380067,58951.0,58950.0,0.00185169]
[1723853973227,0.50930478,58951.0,58950.0,0.00185169]
[1723853973464,0.8485878,58951.0,58950.0,0.00185169]
[1723853973677,1.42799076,58951.0,58950.0,0.00185169]
[1723853973899,0.94249258,58951.0,58950.0,0.00185169]
[1723853974097,1.18927333,58951.0,58950.0,0.00185169]
[1723853974299,1.21444863,58951.0,58950.0,0.00185169]
[1723853974504,0.74931275,58951.0,58950.0,0.00285169]
[1723853974711,1.08857675,58951.0,58950.0,0.00285169]
[1723853975306,0.57968075,58951.0,58950.0,0.00285169]
[1723853975696,0.26439658,58951.0,58950.0,0.00285169]
[1723853975903,0.26439658,58951.0,58950.0,0.17248669]
[1723853976309,0.26117898,58951.0,58950.0,1.22919025]
[1723853976523,0.06117898,58951.0,58950.0,1.34749025]
[1723853976728,0.043824,58951.0,58950.0,1.68676025]
[1723853976933,0.013824,58951.0,58950.0,1.68676025]
[1723853977137,0.03,58960.0,58959.0,1.204563]
[1723853977347,0.04556382,58960.0,58959.0,1.204563]
[1723853977543,0.03,58960.0,58959.0,1.304563]
[1723853978044,0.03,58960.0,58959.0,1.643781]
[1723853978248,0.001,58966.0,58965.0,0.86176]
[1723853978249,0.03,58966.0,58965.0,0.86176]
[1723853978382,0.03,58966.0,58965.0,1.300944]
[1723853978798,0.03,58966.0,58965.0,1.299944]
[1723853979001,0.03,58966.0,58965.0,1.639128]
[1723853979519,0.031,58966.0,58965.0,1.639128]
[1723853979721,0.031,58966.0,58965.0,1.978312]
[1723853979722,0.001,58966.0,58965.0,1.978312]
[1723853979936,0.001,58966.0,58965.0,1.66229846]
[1723853980549,0.001,58966.0,58965.0,1.662128]
[1723853980964,0.03,58969.0,58968.0,1.187084]
[1723853981161,0.03,58969.0,58968.0,1.304384]
[1723853981395,0.03,58969.0,58968.0,1.705041]
[1723853981972,0.000824,58970.0,58969.0,1.560214]
[1723853982173,0.000824,58970.0,58969.0,1.677514]
[1723853982818,0.000824,58970.0,58969.0,1.682014]
[1723853984142,0.000824,58970.0,58969.0,1.705014]
[1723853985119,0.000824,58970.0,58969.0,2.05834546]
[1723853985297,0.000824,58970.0,58969.0,2.0449574]
[1723853985701,0.000824,58970.0,58969.0,2.0589574]
[1723853985901,0.000824,58970.0,58969.0,2.0449574]
[1723853986265,0.000824,58970.0,58969.0,2.0589574]
[1723853986621,0.000824,58970.0,58969.0,2.058175]
[1723853987768,0.000824,58970.0,58969.0,2.0589574]
[1723853988397,0.000824,58970.0,58969.0,2.23051194]
[1723853989833,0.000824,58970.0,58969.0,2.56967294]
[1723853990014,0.000824,58973.0,58969.0,2.56967294]
[1723853990015,0.000824,58973.0,58972.0,1.9173644]
[1723853990180,0.000824,58973.0,58972.0,2.21191894]
[1723853991258,0.000824,58973.0,58972.0,2.21561894]
[1723853991462,0.000824,58973.0,58972.0,2.22961894]
[1723853995273,0.000824,58973.0,58972.0,2.56876294]
[1723853998049,0.000824,58973.0,58972.0,2.90335367]
[1723853998231,0.000824,58973.0,58972.0,2.96384765]
[1723853998529,0.000824,58973.0,58972.0,2.97431691]
[1723853998730,0.000824,58973.0,58972.0,2.91382293]
[1723854000083,0.000824,58973.0,58972.0,2.97327172]
[1723854000665,0.000824,58973.0,58972.0,2.91382398]
[1723854001010,0.000824,58973.0,58972.0,2.91382505]
[1723854003412,0.000824,58973.0,58972.0,2.8677322]
[1723854003629,0.000824,58973.0,58972.0,2.91382512]
[1723854008122,0.1805,58987.0,58986.0,1.18672]
[1723854008327,0.1805,58987.0,58986.0,1.28672]
[1723854010937,0.18332954,58987.0,58986.0,0.955657]
[1723854011163,0.1847176,58987.0,58986.0,0.955657]
[1723854013312,0.1815,58987.0,58986.0,1.29472]
[1723854013774,0.1847176,58987.0,58986.0,1.29472]
[1723854013979,0.1847176,58987.0,58986.0,0.955657]
[1723854013980,0.1815,58987.0,58986.0,0.955657]
[1723854014370,0.1815,58987.0,58986.0,1.29472]
[1723854014599,0.1805,58987.0,58986.0,1.29472]
[1723854014931,0.1805,58987.0,58986.0,0.955657]
[1723854015858,0.1805,58987.0,58986.0,1.29472]
[1723854016519,0.1805,58987.0,58986.0,1.31629869]
[1723854019481,0.181324,58987.0,58986.0,1.31629869]
[1723854019689,0.181324,58987.0,58986.0,1.32683355]
[1723854020023,0.181324,58987.0,58986.0,1.32683342]
[1723854022892,0.18215354,58987.0,58986.0,1.32683342]
[1723854023091,0.1855416,58987.0,58986.0,1.32683342]
[1723854023615,0.182324,58987.0,58986.0,1.32683342]
[1723854023912,0.1855416,58987.0,58986.0,1.32683342]
[1723854024150,0.1855416,58987.0,58986.0,0.02957857]
[1723854024340,0.1855416,58987.0,58986.0,0.008]
[1723854024596,0.1552176,58971.0,58970.0,0.3400604]
[1723854024778,0.1552176,58971.0,58970.0,0.5096374]
[1723854025417,0.1552176,58971.0,58970.0,0.8487924]
[1723854025827,0.1552176,58971.0,58970.0,0.9487924]
[1723854026859,0.1552176,58971.0,58970.0,0.6096374]
[1723854027064,0.1562176,58971.0,58970.0,0.6186374]
[1723854027636,0.152,58971.0,58970.0,0.9577924]
[1723854027810,0.152,58971.0,58970.0,0.97937784]
[1723854028027,0.152,58971.0,58970.0,1.31853284]
[1723854032113,0.152,58971.0,58970.0,1.2969474]
[1723854032286,0.152,58971.0,58970.0,1.31853189]
[1723854033677,0.001,58971.0,58970.0,1.31853189]
[1723854036272,0.001,58971.0,58970.0,1.2969474]
[1723854036422,0.001,58971.0,58970.0,1.31853154]
[1723854038425,0.001,58971.0,58970.0,1.34153154]
[1723854038953,0.0833,58971.0,58970.0,1.31853154]
[1723854039155,0.146,58971.0,58970.0,1.31853154]
[1723854039340,0.14682954,58971.0,58970.0,1.31853154]
[1723854040260,0.14682954,58971.0,58970.0,1.2969474]
[1723854040456,0.14682954,58971.0,58970.0,1.31853226]
[1723854041162,0.146,58971.0,58970.0,1.2969474]
[1723854041357,0.146,58971.0,58970.0,1.31853183]
[1723854043867,0.001,58971.0,58970.0,1.34153183]
[1723854044256,0.001,58971.0,58970.0,1.68068683]
[1723854044620,0.001,58971.0,58970.0,1.69935555]
[1723854044830,0.001,58971.0,58970.0,1.72370264]
[1723854047154,0.146,58971.0,58970.0,1.70520264]
[1723854047356,0.146,58971.0,58970.0,1.705203]
[1723854047797,0.146,58971.0,58970.0,1.68068509]
[1723854048353,0.146,58971.0,58970.0,1.6591024]
[1723854048557,0.146,58971.0,58970.0,1.68068545]
[1723854048767,0.001,58971.0,58970.0,1.68068545]
[1723854048973,0.001,58971.0,58970.0,1.7052035]
[1723854051846,0.001,58971.0,58970.0,0.0560075]
[1723854051847,0.1478,58971.0,58970.0,0.0560075]
[1723854052035,0.45461936,58971.0,58970.0,0.03148945]
[1723854052261,0.45461936,58971.0,58970.0,0.0099064]
[1723854052262,0.45447996,58971.0,58970.0,0.0099064]
[1723854052615,0.50506216,58971.0,58970.0,0.0099064]
[1723854052956,0.50506216,58971.0,58969.0,0.001]
[1723854052957,0.1151176,58970.0,58969.0,0.001]
[1723854053095,0.2305998,58970.0,58969.0,0.001]
[1723854053295,0.1800176,58970.0,58969.0,0.001]
[1723854053623,0.24590131,58970.0,58969.0,0.001]
[1723854054392,0.19543997,58970.0,58969.0,0.001]
[1723854054609,0.41547831,58970.0,58969.0,0.001]
[1723854054809,0.41847831,58970.0,58969.0,0.001]
[1723854055403,0.36801697,58970.0,58969.0,0.001]
[1723854055815,0.36501697,58970.0,58969.0,0.001]
[1723854056261,0.36501697,58970.0,58965.0,0.0009064]
[1723854056262,0.2032176,58966.0,58965.0,0.0009064]
[1723854056465,0.53498973,58966.0,58965.0,0.0009064]
[1723854056665,0.87416773,58966.0,58965.0,0.0009064]
[1723854056866,0.53498973,58966.0,58965.0,0.0009064]
[1723854057375,0.36540073,58966.0,58965.0,0.0009064]
[1723854057601,0.0342176,58951.0,58950.0,0.00285169]
[1723854057796,0.19687613,58951.0,58950.0,0.00285169]
[1723854057990,0.21206836,58951.0,58950.0,0.00285169]
[1723854058550,0.41206836,58951.0,58950.0,0.00285169]
[1723854058749,0.41306836,58951.0,58950.0,0.00285169]
[1723854060704,0.41206836,58951.0,58950.0,0.00285169]
[1723854060901,0.41406836,58951.0,58950.0,0.00285169]
[1723854061323,0.41206836,58951.0,58950.0,0.00285169]
[1723854061471,0.41506836,58951.0,58950.0,0.00285169]
[1723854065672,0.41423882,58951.0,58950.0,0.00285169]
[1723854065849,0.41506836,58951.0,58950.0,0.00285169]
[1723854067900,0.9316696,58951.0,58950.0,0.00285169]
[1723854068318,0.87320036,58951.0,58950.0,0.00285169]
[1723854068540,1.21246436,58951.0,58950.0,0.00285169]
[1723854068742,1.21046436,58951.0,58950.0,0.00285169]
[1723854068958,1.21046436,58951.0,58950.0,0.00185169]
[1723854069907,1.54972836,58951.0,58950.0,0.00185169]
[1723854070122,0.87020036,58951.0,58950.0,0.00185169]
[1723854070914,0.87820036,58951.0,58950.0,0.00185169]
[1723854071119,0.87020036,58951.0,58950.0,0.00185169]
[1723854071535,0.42406836,58951.0,58950.0,0.00185169]
[1723854072518,0.42406836,58951.0,58950.0,0.85002669]
[1723854072519,0.15595076,58951.0,58950.0,0.85002669]
[1723854072673,0.05985853,58951.0,58950.0,1.44059669]
[1723854072894,0.05985853,58951.0,58950.0,1.45092329]
[1723854073492,0.06085853,58951.0,58950.0,1.29962329]
[1723854073852,0.07285853,58951.0,58950.0,1.29962329]
[1723854074053,0.06085853,58951.0,58950.0,1.29962329]
[1723854074327,0.06407613,58951.0,58950.0,0.96035329]
[1723854074530,0.19367613,58951.0,58950.0,0.61075669]
[1723854074658,0.19367613,58951.0,58950.0,0.61375669]
[1723854074868,0.20932482,58951.0,58950.0,0.61375669]
[1723854075087,0.49782482,58951.0,58950.0,0.10485169]
[1723854075611,0.49782482,58951.0,58950.0,0.00485169]
[1723854075991,0.49782482,58951.0,58950.0,0.17448669]
[1723854077007,0.20932482,58951.0,58950.0,0.85302669]
[1723854077231,0.06772482,58951.0,58950.0,1.29229669]
[1723854077779,0.05007613,58951.0,58950.0,1.29229669]
[1723854077990,0.031,58951.0,58950.0,1.63156669]
[1723854078440,0.031,58951.0,58950.0,1.78286669]
[1723854078638,0.031,58951.0,58950.0,1.80445667]
[1723854080485,0.031,58951.0,58950.0,1.78286669]
[1723854080678,0.031,58951.0,58950.0,1.80445651]
[1723854085059,0.031,58951.0,58950.0,1.78286669]
[1723854085290,0.031,58951.0,58950.0,1.80445665]
[1723854085737,0.031,58951.0,58950.0,1.80445663]
[1723854087332,0.031,58951.0,58950.0,1.85198071]
[1723854089589,0.031,58951.0,58950.0,1.85197943]
[1723854092315,0.031,58951.0,58950.0,1.80586669]
[1723854092497,0.031,58951.0,58950.0,1.85197896]
[1723854093662,0.031,58951.0,58950.0,1.82745531]
[1723854094216,0.031,58951.0,58950.0,1.82745575]
[1723854095566,0.001,58951.0,58950.0,1.85197965]
[1723854095815,0.001,58951.0,58950.0,1.82745575]
[1723854096215,0.001,58951.0,58950.0,1.85197993]
[1723854097233,0.000824,58956.0,58955.0,1.187343]
[1723854097475,0.000824,58956.0,58955.0,1.30893206]
[1723854097885,0.16849273,58956.0,58955.0,0.96969106]
[1723854098033,0.16849273,58956.0,58955.0,0.948102]
[1723854098415,0.17049273,58956.0,58955.0,0.948102]
[1723854099222,0.17188079,58956.0,58955.0,0.96969231]
[1723854099428,0.17488079,58956.0,58955.0,0.96969231]
[1723854099943,0.17688079,58956.0,58955.0,0.96969231]
[1723854100147,0.17688079,58956.0,58955.0,0.96969227]
[1723854100350,0.17388079,58956.0,58955.0,0.96969227]
[1723854100815,0.17166319,58956.0,58955.0,0.96969227]
[1723854101165,0.16966319,58956.0,58955.0,0.96969227]
[1723854101373,0.16966319,58956.0,58955.0,0.98013475]
[1723854101802,0.16866319,58956.0,58955.0,0.98013475]
[1723854102801,0.001824,58956.0,58955.0,1.31937575]
[1723854106245,0.001824,58956.0,58955.0,1.34389988]
[1723854110647,0.1502,58975.0,58966.0,0.1567]
[1723854110861,0.1492,58975.0,58974.0,1.186962]
[1723854111046,0.0791,58975.0,58974.0,1.30854545]
[1723854111248,0.0813176,58975.0,58974.0,0.96941345]
[1723854111417,0.08048806,58975.0,58974.0,0.96941345]
[1723854111781,0.08048806,58975.0,58974.0,1.30754545]
[1723854112023,0.08048806,58975.0,58974.0,1.30654545]
[1723854112221,0.08148806,58975.0,58974.0,1.30854545]
[1723854112533,0.0801,58975.0,58974.0,1.30854545]
[1723854112765,0.08148806,58975.0,58974.0,1.31254545]
[1723854113284,0.0801,58975.0,58974.0,1.31254545]
[1723854115081,0.1544176,58975.0,58974.0,0.63428145]
[1723854115258,0.1544176,58975.0,58974.0,0.006]
[1723854115458,0.1544176,58975.0,58974.0,0.175566]
[1723854115459,0.15441206,58975.0,58974.0,0.175566]
[1723854115735,0.15441206,58975.0,58974.0,0.006]
[1723854116553,0.1552416,58975.0,58974.0,0.006]
[1723854117016,0.1552416,58975.0,58974.0,0.002]
[1723854117433,0.1552416,58975.0,58972.0,0.269569]
[1723854117434,0.0342176,58973.0,58972.0,0.269569]
[1723854117742,0.0342176,58973.0,58972.0,0.608713]
[1723854117743,0.1111,58973.0,58972.0,0.608713]
[1723854118369,0.1133176,58973.0,58972.0,0.608713]
[1723854118768,0.1133176,58973.0,58972.0,0.610713]
[1723854119409,0.11248806,58973.0,58972.0,0.611713]
[1723854119803,0.1133176,58973.0,58972.0,0.611713]
[1723854120207,0.11248806,58973.0,58972.0,0.611713]
[1723854120563,0.1133176,58973.0,58972.0,0.611713]
[1723854120765,0.1834176,58973.0,58972.0,0.272569]
[1723854121379,0.19936903,58973.0,58972.0,0.272569]
[1723854122895,0.19936903,58973.0,58972.0,0.103]
[1723854123070,0.19936903,58973.0,58972.0,0.272572]
[1723854123921,0.2499445,58973.0,58972.0,0.272572]
[1723854124898,0.53847215,58973.0,58972.0,0.003]
[1723854125031,0.76342347,58973.0,58972.0,0.003]
[1723854125231,0.63691565,58973.0,58972.0,0.003]
[1723854125973,0.63691565,58973.0,58972.0,0.002]
[1723854126355,0.63991565,58973.0,58972.0,0.002]
[1723854126728,0.001,58969.0,58968.0,0.169581]
[1723854126931,0.03,58967.0,58966.0,0.608764]
[1723854127135,0.08481205,58967.0,58966.0,0.608764]
[1723854127355,0.10074968,58967.0,58966.0,0.608764]
[1723854128347,0.10074968,58967.0,58966.0,0.611764]
[1723854128567,0.10074968,58967.0,58966.0,0.6126704]
[1723854128568,0.05015523,58967.0,58966.0,0.6126704]
[1723854128767,0.05015523,58967.0,58966.0,0.6156704]
[1723854129114,0.05015523,58967.0,58966.0,0.2764924]
[1723854129385,0.12975523,58967.0,58966.0,0.2764924]
[1723854132498,0.20570694,58967.0,58966.0,0.2764924]
[1723854132702,0.20570694,58967.0,58966.0,0.1069064]
[1723854134685,0.20570694,58967.0,58966.0,0.2764954]
[1723854134886,0.12975523,58967.0,58966.0,0.6156734]
[1723854136832,0.12975523,58967.0,58966.0,0.9548514]
[1723854137236,0.12975523,58967.0,58966.0,1.2940294]
[1723854137435,0.12975523,58967.0,58966.0,1.3786294]
[1723854137436,0.04593763,58967.0,58966.0,1.3786294]
[1723854137862,0.03,58967.0,58966.0,1.3786294]
[1723854140841,0.03,58967.0,58966.0,1.2940294]
[1723854141044,0.0322176,58967.0,58966.0,1.2940294]
[1723854141465,0.03138806,58967.0,58966.0,1.2940294]
[1723854144142,0.03138806,58967.0,58966.0,1.31561684]
[1723854144282,0.03,58967.0,58966.0,1.31561684]
[1723854145271,0.03,58967.0,58966.0,1.32576922]
[1723854145472,0.03,58967.0,58966.0,1.30418178]
[1723854145850,0.03,58967.0,58966.0,1.32576922]
[1723854147690,0.03,58967.0,58966.0,1.66494722]
[1723854148632,0.000824,58974.0,58966.0,1.66494722]
[1723854148633,0.000824,58974.0,58973.0,0.594407]
[1723854148832,0.000824,58974.0,58973.0,1.14353244]
[1723854149046,0.000824,58974.0,58973.0,1.50735953]
[1723854149047,0.01377513,58974.0,58973.0,1.50735953]
[1723854149251,0.000824,58974.0,58973.0,1.84649753]
[1723854149461,0.000824,58974.0,58973.0,2.1401414]
[1723854149605,0.000824,58974.0,58973.0,2.18623821]
[1723854149863,0.000824,58974.0,58973.0,2.36379275]
[1723854149864,0.002824,58974.0,58973.0,2.36379275]
[1723854150063,0.002824,58974.0,58973.0,2.02404281]
[1723854150304,0.000824,58974.0,58973.0,2.01804281]
[1723854150508,0.001824,58974.0,58973.0,2.01904281]
[1723854150733,0.002824,58974.0,58973.0,2.36318081]
[1723854151107,0.002824,58974.0,58973.0,2.36301035]
[1723854151283,0.002824,58974.0,58973.0,2.36318081]
[1723854151490,0.002824,58974.0,58973.0,2.36379275]
[1723854152518,0.002824,58974.0,58973.0,2.37402276]
[1723854153138,0.000824,58986.0,58985.0,0.659703]
[1723854153353,0.000824,58986.0,58985.0,1.46101146]
[1723854153537,0.000824,58986.0,58985.0,2.19454699]
[1723854153758,0.000824,58986.0,58985.0,2.39061455]
[1723854155489,0.000824,58986.0,58985.0,2.39061302]
[1723854155897,0.000824,58986.0,58985.0,2.40129464]
[1723854156097,0.000824,58986.0,58985.0,2.41512418]
[1723854156325,0.001824,58986.0,58985.0,2.42912377]
[1723854156522,0.001824,58986.0,58985.0,2.42990617]
[1723854157364,0.001824,58986.0,58985.0,2.40461066]
[1723854158003,0.001824,58986.0,58985.0,2.40461082]
[1723854159135,0.001824,58986.0,58985.0,2.40461064]
[1723854160679,0.001824,58986.0,58985.0,1.7088971]
[1723854160904,0.0849416,58986.0,58985.0,0.88618316]
[1723854161152,0.0859416,58986.0,58985.0,0.88618316]
[1723854161732,0.081724,58986.0,58985.0,0.88618316]
[1723854162333,0.081724,58986.0,58985.0,0.97218316]
[1723854162557,0.080724,58986.0,58985.0,0.95818316]
[1723854162760,0.082724,58986.0,58985.0,0.97918316]
[1723854163159,0.081724,58986.0,58985.0,0.96918316]
[1723854163716,0.080724,58986.0,58985.0,0.96218316]
[1723854163886,0.080724,58986.0,58985.0,0.96818316]
[1723854164245,0.080724,58986.0,58985.0,0.96218316]
[1723854165110,0.080724,58986.0,58985.0,0.95818316]
[1723854165339,0.081724,58986.0,58985.0,0.96818316]
[1723854165541,0.081724,58986.0,58985.0,0.97918316]
[1723854165880,0.081724,58986.0,58985.0,0.95818316]
[1723854166300,0.083724,58986.0,58985.0,0.97718316]
[1723854166527,0.082724,58986.0,58985.0,0.97718316]
[1723854166873,0.082724,58986.0,58985.0,0.97918316]
[1723854167074,0.083724,58986.0,58985.0,0.98918316]
[1723854167916,0.0859416,58986.0,58985.0,0.98918316]
[1723854168467,0.084724,58986.0,58985.0,0.98918316]
[1723854169833,0.084724,58986.0,58985.0,1.32825216]
[1723854170046,0.084724,58986.0,58985.0,0.98918316]
[1723854170215,0.083724,58986.0,58985.0,1.32825216]
[1723854170422,0.003824,58986.0,58985.0,1.32825216]
[1723854171501,0.003824,58986.0,58985.0,1.35125216]
[1723854172540,0.003824,58986.0,58985.0,1.32825216]
[1723854172876,0.0060416,58986.0,58985.0,1.32825216]
[1723854173285,0.0060416,58986.0,58985.0,1.34983154]
[1723854173749,0.0702416,58986.0,58985.0,1.34983154]
[1723854174308,0.068024,58986.0,58985.0,1.34983154]
[1723854175078,0.003824,58986.0,58985.0,1.34983154]
[1723854175561,0.003824,58986.0,58985.0,1.83820054]
[1723854175763,0.003824,58986.0,58985.0,2.03275508]
[1723854175967,0.003824,58986.0,58985.0,2.05743805]
[1723854176181,0.003824,58986.0,58985.0,2.05726759]
[1723854176378,0.003824,58986.0,58985.0,2.39633659]
[1723854176597,0.003824,58986.0,58985.0,2.05726759]
[1723854176813,0.002824,58986.0,58985.0,2.04726759]
[1723854176996,0.002824,58986.0,58985.0,2.05126759]
[1723854177138,0.001824,58986.0,58985.0,2.04026759]
[1723854177350,0.001824,58986.0,58985.0,2.3332447]
[1723854177548,0.001824,58986.0,58985.0,2.04026394]
[1723854178837,0.001824,58986.0,58985.0,2.37933294]
[1723854178988,0.001824,58986.0,58985.0,2.39333294]
[1723854180980,0.001824,58986.0,58985.0,2.3472447]
[1723854181197,0.001824,58986.0,58985.0,2.393333]
[1723854181415,0.001824,58986.0,58985.0,2.054264]
[1723854181647,0.001824,58986.0,58985.0,2.393333]
[1723854181851,0.001824,58986.0,58985.0,2.45277726]
[1723854182706,0.001824,58986.0,58985.0,2.37175617]
[1723854182974,0.001824,58986.0,58985.0,2.39333221]
[1723854183199,0.001824,58986.0,58985.0,2.1137051]
[1723854183436,0.001824,58986.0,58985.0,1.73340867]
[1723854184371,0.001824,58986.0,58985.0,1.68732116]
[1723854184671,0.001824,58986.0,58985.0,1.73340973]
[1723854186103,0.147124,58986.0,58985.0,1.73340973]
[1723854186297,0.147124,58986.0,58985.0,1.37134073]
[1723854187079,0.147124,58986.0,58985.0,1.37134317]
[1723854188413,0.147124,58986.0,58985.0,1.32525216]
[1723854188613,0.147124,58986.0,58985.0,1.37134313]
[1723854188790,0.001824,58986.0,58985.0,1.71041213]
[1723854188994,0.001824,58986.0,58985.0,1.73341213]
[1723854189364,0.001824,58986.0,58985.0,1.71183396]
[1723854189566,0.001824,58986.0,58985.0,1.73341167]
[1723854189948,0.083324,58986.0,58985.0,1.73341167]
[1723854190979,0.083324,58986.0,58985.0,1.38434267]
[1723854191591,0.083324,58986.0,58985.0,1.72341167]
[1723854192147,0.001824,58986.0,58985.0,1.72341167]
[1723854192747,0.001824,58986.0,58985.0,1.80961167]
[1723854192954,0.001824,58986.0,58985.0,1.76352116]
[1723854193157,0.001824,58986.0,58985.0,1.8096105]
[1723854193405,0.001824,58986.0,58985.0,2.1486795]
[1723854193602,0.001824,58986.0,58985.0,1.8096105]
[1723854194596,0.001824,58986.0,58985.0,2.32023404]
[1723854194819,0.001824,58986.0,58985.0,2.3204045]
[1723854195588,0.000824,58987.0,58986.0,1.5265654]
[1723854195808,0.0815,58998.0,58986.0,1.5265654]
[1723854195809,0.0815,58998.0,58997.0,0.5085]
[1723854196010,0.0702,58999.0,58998.0,0.847485]
[1723854196208,0.082324,59001.0,59000.0,0.847457]
[1723854196331,0.082324,59001.0,59000.0,1.35552934]
[1723854196535,0.082324,59001.0,59000.0,1.69450556]
[1723854197795,0.082324,59001.0,59000.0,1.68950556]
[1723854198166,0.000824,59001.0,59000.0,1.68950556]
[1723854198717,0.001824,59001.0,59000.0,1.68950556]
[1723854199278,0.000824,59001.0,59000.0,1.68950556]
[1723854199695,0.000824,59001.0,59000.0,1.69250556]
[1723854200099,0.000824,59001.0,59000.0,1.70272747]
[1723854200881,0.000824,59001.0,59000.0,1.70472742]
[1723854203455,0.000824,59001.0,59000.0,1.79092742]
[1723854204797,0.000824,59001.0,59000.0,1.74484491]
[1723854205021,0.000824,59001.0,59000.0,1.79092688]
[1723854205480,0.000824,59001.0,59000.0,1.79092668]
[1723854206941,0.000824,59001.0,59000.0,1.85542668]
[1723854207317,0.000824,59001.0,59000.0,1.70472668]
[1723854208052,0.000824,59001.0,59000.0,2.04388014]
[1723854208218,0.000824,59001.0,59000.0,2.13730373]
[1723854208406,0.000824,59001.0,59000.0,2.07787014]
[1723854208817,0.000824,59001.0,59000.0,2.28434]
[1723854209016,0.000824,59001.0,59000.0,2.24641963]
[1723854209218,0.000824,59001.0,59000.0,2.33981963]
[1723854210006,0.000824,59001.0,59000.0,2.44511963]
[1723854210202,0.000824,59001.0,59000.0,2.45911963]
[1723854210452,0.000824,59001.0,59000.0,2.45711963]
[1723854210837,0.000824,59001.0,59000.0,2.53613157]
[1723854211240,0.000824,59001.0,59000.0,2.52213157]
[1723854211854,0.000824,59001.0,59000.0,2.40283157]
[1723854212058,0.000824,59001.0,59000.0,2.41683157]
[1723854212472,0.00824,59010.0,59009.0,1.525189]
[1723854212670,0.00824,59010.0,59009.0,1.69426572]
[1723854213931,0.00824,59010.0,59009.0,1.70826572]
[1723854214828,0.00824,59010.0,59009.0,1.72226572]
[1723854215809,0.00824,59010.0,59009.0,2.06119672]
[1723854216235,0.00824,59010.0,59009.0,2.09518672]